fUSD/lending_fUSD_20240414
["ID","MTS","AMOUNT","RATE_DAILY","PERIOD"]
[322613085,1713118837798,-300.90357218,0.00036319,30]
[322613086,1713118837830,-2202.46,0.00036319,30]
[322613087,1713118837861,-2202.46,0.00036319,30]
[322613088,1713118837892,-2202.46,0.00036319,30]
[322613089,1713118837924,-500.0,0.00036319,30]
[322613090,1713118837955,-787.82,0.00036319,30]
[322613091,1713118837986,-2202.46,0.00036319,30]
[322613092,1713118838018,-500.0,0.00036319,30]
[322613093,1713118838051,-500.0,0.00036319,30]
[322613094,1713118838082,-787.82,0.00036319,30]
[322613095,1713118838120,-2202.46,0.00036319,30]
[322613096,1713118838152,-500.0,0.00036319,30]
[322613097,1713118838184,-787.82,0.00036319,30]
[322613098,1713118838218,-2202.46,0.00036319,30]
[322613099,1713118838248,-500.0,0.00036319,30]
[322613100,1713118838279,-715.25,0.00036319,30]
[322613101,1713118838310,-500.0,0.00036319,30]
[322613102,1713118838342,-787.82,0.00036319,30]
[322613103,1713118838374,-2202.46,0.00036319,30]
[322613104,1713118838405,-715.25,0.00036319,30]
[322613105,1713118838435,-514.87034558,0.00036319,30]
[322613106,1713118839367,-787.82,0.00036319,30]
[322613107,1713118839410,-500.0,0.00036319,30]
[322613108,1713118839994,-715.25,0.00036319,30]
[322613109,1713118840037,-500.0,0.00036319,30]
[322613110,1713118840078,-2202.46,0.00036319,30]
[322613111,1713118840118,-2202.46,0.00036319,30]
[322613112,1713118840158,-500.0,0.00036319,30]
[322613113,1713118840194,-787.82,0.00036319,30]
[322613114,1713118840239,-715.25,0.00036319,30]
[322613115,1713118840275,-2202.46,0.00036319,30]
[322613116,1713118840310,-500.0,0.00036319,30]
[322613117,1713118840344,-715.25,0.00036319,30]
[322613118,1713118840378,-380.17601904,0.00036319,30]
[322613119,1713119216332,779.87,0.00017685,2]
[322613120,1713119285829,288.09495201,0.00017685,2]
[322613121,1713119287066,2538.14948095,0.00013264,2]
[322613122,1713119288094,1372.78793614,0.00017685,2]
[322613123,1713119303013,2032.1142252,0.00013264,2]
[322613124,1713119303826,286.47796723,0.00017685,2]
[322613125,1713119306091,1051.11193105,0.00017685,2]
[322613146,1713119376905,2275.337149,0.00018415,2]
[322613204,1713119432610,-215.75624408,0.00018503,2]
[322613205,1713119432620,-167.14197404,0.00018504,2]
[322613206,1713119432630,-2234.0444681,0.00018504,2]
[322613207,1713119432639,-749.05627992,0.00018505,2]
[322613208,1713119432651,-2352.46926629,0.00018506,2]
[322613209,1713119432660,-150.0,0.00018506,2]
[322613210,1713119432670,-2234.0444681,0.00018507,2]
[322613212,1713119432680,-1222.72700384,0.00018507,2]
[322613214,1713119432689,-1222.72700384,0.00018507,2]
[322613216,1713119432700,-2234.0444681,0.00018507,2]
[322613218,1713119432710,-607.36870775,0.00018603,2]
[322613219,1713119432719,-870.5,0.00019255,2]
[322613220,1713119432728,-901.63,0.00019382,2]
[322613222,1713119432738,-13140.52,0.000194,2]
[322613224,1713119432747,-299.99,0.000194,7]
[322613226,1713119432756,-154.75549264,0.00019462,2]
[322613228,1713119432766,-1182.9,0.0001947,2]
[322613230,1713119432775,-500.0,0.00019489,2]
[322613232,1713119432784,-200.0,0.00019512,2]
[322613233,1713119432794,-4446.62,0.00019514,2]
[322613235,1713119432803,-168.78,0.00019552,2]
[322613237,1713119432813,-3819.0,0.00019557,3]
[322613239,1713119432822,-2162.2,0.00019557,2]
[322613241,1713119432833,-482.73,0.00019568,2]
[322613243,1713119432842,-500.0,0.00019608,2]
[322613245,1713119432851,-355.77,0.00019664,2]
[322613246,1713119432861,-5806.13527407,0.0001967,2]
[322613247,1713119432870,-1500.0,0.0001967,2]
[322613248,1713119432879,-160.0,0.00019674,2]
[322613249,1713119432889,-23900.0,0.0001968,2]
[322613250,1713119432899,-250.0,0.00019726,2]
[322613251,1713119432909,-853.79,0.0001991,2]
[322613252,1713119432919,-154.75549264,0.00019941,2]
[322613253,1713119432929,-779.87,0.00019949,2]
[322613254,1713119432939,-872.0,0.00019984,2]
[322613255,1713119432949,-1046.36158847,0.00020092,2]
[322613256,1713119432959,-168.06,0.00020093,2]
[322613257,1713119432969,-174.14,0.00020192,2]
[322613258,1713119432978,-25165.8661,0.00020411,2]
[322613259,1713119432988,-11353.899,0.00020411,2]
[322613260,1713119432998,-500.0,0.00020411,2]
[322613261,1713119433008,-154.75549264,0.0002042,2]
[322613262,1713119433017,-9320.19,0.00020548,2]
[322613263,1713119433027,-199.86598724,0.0002079,2]
[322613264,1713119433037,-628.80710809,0.000208,2]
[322613265,1713119433046,-628.807108,0.00020811,2]
[322613266,1713119433056,-628.807108,0.00020822,2]
[322613267,1713119433065,-189.93614,0.00020886,2]
[322613268,1713119433075,-2273.7768,0.00020897,2]
[322613269,1713119433085,-911.28725767,0.00020899,2]
[322613270,1713119433094,-198.02966088,0.00020899,2]
[322613271,1713119433103,-172.23989272,0.00020899,2]
[322613272,1713119433113,-152.89496079,0.00020899,2]
[322613273,1713119433122,-152.59105549,0.00020899,2]
[322613274,1713119433133,-276.71287767,0.00020899,2]
[322613275,1713119433148,-154.75549264,0.00020899,2]
[322613276,1713119433158,-316.26634765,0.00020899,2]
[322613277,1713119433167,-276.71287764,0.00020899,2]
[322613278,1713119433177,-276.71287764,0.00020899,2]
[322613279,1713119433186,-276.71287764,0.00020899,2]
[322613280,1713119433195,-276.71287764,0.000209,2]
[322613281,1713119433205,-276.71287764,0.000209,2]
[322613282,1713119433214,-276.71287764,0.000209,2]
[322613283,1713119433224,-276.71287764,0.000209,2]
[322613284,1713119433234,-745.48930542,0.000209,2]
[322613285,1713119433244,-697.21517898,0.000209,2]
[322613286,1713119433252,-697.21517893,0.000209,2]
[322613287,1713119433262,-697.21517893,0.000209,2]
[322613288,1713119433272,-697.21517893,0.000209,2]
[322613289,1713119433281,-697.21517893,0.000209,2]
[322613290,1713119433291,-697.21517893,0.000209,2]
[322613291,1713119433300,-697.21517893,0.000209,2]
[322613292,1713119433310,-697.21517893,0.000209,2]
[322613293,1713119433319,-697.21517893,0.000209,2]
[322613294,1713119433328,-697.21517893,0.000209,2]
[322613295,1713119433338,-697.21517893,0.000209,2]
[322613296,1713119433348,-697.21517893,0.000209,2]
[322613297,1713119433357,-697.21517893,0.000209,2]
[322613298,1713119433367,-697.21517893,0.000209,2]
[322613299,1713119433377,-697.21517893,0.000209,2]
[322613300,1713119433387,-697.21517893,0.000209,2]
[322613301,1713119433399,-697.21517893,0.000209,2]
[322613302,1713119433409,-697.21517893,0.000209,2]
[322613303,1713119433418,-3935.55339489,0.000209,2]
[322613304,1713119433427,-697.21517893,0.000209,2]
[322613305,1713119433437,-3399.99774001,0.000209,2]
[322613306,1713119433447,-697.21517893,0.000209,2]
[322613307,1713119433456,-182.58498013,0.000209,2]
[322613308,1713119433466,-19874.0,0.00020986,2]
[322613309,1713119433476,-3624.0,0.00020986,2]
[322613310,1713119433486,-746.28,0.00020987,3]
[322613311,1713119433496,-26583.68113656,0.00020997,2]
[322613312,1713119433505,-413.57991297,0.00020997,2]
[322613313,1713119433515,-155.00005026,0.00020997,2]
[322613314,1713119433525,-292.7266712,0.00020997,2]
[322613315,1713119433535,-158.43153241,0.00020997,2]
[322613316,1713119433545,-4323.08544763,0.00020997,2]
[322613317,1713119433554,-201.9156312,0.00020997,2]
[322613318,1713119433564,-12059.98043502,0.00020997,2]
[322613319,1713119433573,-1232.10824713,0.00020997,2]
[322613320,1713119433583,-351.46734492,0.00020997,7]
[322613321,1713119433593,-708.23085285,0.00020997,2]
[322613322,1713119433603,-546.18176525,0.00020997,2]
[322613323,1713119433613,-1889.56216855,0.00020997,2]
[322613324,1713119433623,-404.87415105,0.00020997,2]
[322613325,1713119433632,-1969.91143067,0.00020997,2]
[322613326,1713119433642,-244.83254232,0.00020997,2]
[322613327,1713119433658,-35196.77114484,0.00020997,2]
[322613328,1713119433667,-2175.08703921,0.00020997,2]
[322613329,1713119433678,-227.83,0.00020997,2]
[322613330,1713119433687,-1240.12890502,0.00020997,2]
[322613331,1713119433697,-479.68107832,0.00020998,2]
[322613332,1713119433707,-312.61768174,0.00020998,2]
[322613333,1713119433717,-21819.73437446,0.00020998,2]
[322613334,1713119433726,-530.25373232,0.00020998,2]
[322613335,1713119433736,-1081.54694968,0.00020998,5]
[322613336,1713119433746,-980.0,0.00020999,2]
[322613337,1713119433755,-784.56003673,0.00020999,2]
[322613338,1713119433765,-389.948545,0.00020999,2]
[322613339,1713119433774,-233.969127,0.00020999,2]
[322613340,1713119433784,-155.979418,0.00020999,2]
[322613341,1713119433794,-594420.1273006,0.00020999,2]
[322613342,1713119433807,-211429.30412985,0.00020999,2]
[322613343,1713119433839,-342.46857,0.00020999,2]
[322613344,1713119434246,-4299.08963738,0.00020999,2]
[322613345,1713119434259,-2275.21706025,0.00020999,2]
[322613346,1713119434271,-5107.80679493,0.00020999,2]
[322613347,1713119434282,-264.25996,0.00020999,2]
[322613348,1713119434432,-628.807108,0.00020833,2]
[322613349,1713119434442,-2436.65738402,0.00020999,2]
[322613350,1713119434454,-238180.15297022,0.00020999,2]
[322613351,1713119434466,-1701.70000046,0.00020999,2]
[322613352,1713119434478,-271.96703048,0.00020999,2]
[322613353,1713119434489,-16074.95771348,0.00020999,2]
[322613465,1713119440354,-325.523986,0.00018504,2]
[322613466,1713119440505,-1908.5204821,0.00018504,2]
[322613467,1713119440515,-2234.0444681,0.00018504,2]
[322613468,1713119440525,-628.807108,0.00020844,2]
[322613469,1713119440533,-322.19591055,0.00020989,2]
[322613470,1713119440542,-322.19591055,0.00020989,2]
[322613471,1713119440552,-322.19591055,0.0002099,2]
[322613472,1713119440561,-2379.96357585,0.00020999,2]
[322613473,1713119440572,-651.03748699,0.00020999,2]
[322613474,1713119440599,-838.86498246,0.00020999,2]
[322613475,1713119440610,-584592.98149353,0.00020999,2]
[322613476,1713119440620,-1081.54694968,0.00020999,5]
[322613477,1713119440629,-1081.54694968,0.00020999,5]
[322613478,1713119440638,-1081.54694968,0.00020999,5]
[322613479,1713119440648,-1081.54694966,0.00020999,5]
[322613480,1713119440657,-1081.54694968,0.00020999,5]
[322613481,1713119440666,-205.32203762,0.00020999,2]
[322613482,1713119440676,-2964.30209315,0.00020999,2]
[322613483,1713119440685,-500.0,0.00020999,2]
[322613484,1713119440694,-457.18375264,0.00020999,2]
[322613485,1713119440703,-500.0,0.00020999,2]
[322613486,1713119440712,-500.0,0.00020999,2]
[322613487,1713119440721,-569.97785648,0.00020999,2]
[322613488,1713119440731,-500.0,0.00020999,2]
[322613489,1713119440740,-500.0,0.00020999,2]
[322613490,1713119440749,-500.0,0.00020999,2]
[322613491,1713119440759,-500.0,0.00020999,2]
[322613492,1713119440768,-500.0,0.00020999,2]
[322613493,1713119440778,-500.0,0.00020999,2]
[322613494,1713119440787,-500.0,0.00020999,2]
[322613495,1713119440796,-500.0,0.00020999,2]
[322613496,1713119440805,-500.0,0.00020999,2]
[322613497,1713119440815,-500.0,0.00020999,2]
[322613498,1713119440824,-500.0,0.00020999,2]
[322613499,1713119440834,-500.0,0.00020999,2]
[322613500,1713119440843,-500.0,0.00020999,2]
[322613501,1713119440852,-500.0,0.00020999,2]
[322613502,1713119440862,-500.0,0.00020999,2]
[322613503,1713119440871,-500.0,0.00020999,2]
[322613504,1713119440880,-500.0,0.00020999,2]
[322613505,1713119440889,-593.90866849,0.00020999,2]
[322613506,1713119440901,-500.0,0.00020999,2]
[322613507,1713119440911,-500.0,0.00020999,2]
[322613508,1713119440920,-500.0,0.00020999,2]
[322613509,1713119440930,-150.0,0.00020999,2]
[322613510,1713119440939,-500.0,0.00020999,2]
[322613511,1713119440948,-500.0,0.00020999,2]
[322613512,1713119440958,-500.0,0.00020999,2]
[322613513,1713119440968,-500.0,0.00020999,2]
[322613514,1713119440977,-500.0,0.00020999,2]
[322613515,1713119440986,-416.60457272,0.00020999,2]
[322613516,1713119440996,-172.61408407,0.00020999,2]
[322613517,1713119441005,-449.99999999,0.00020999,2]
[322613518,1713119441015,-402.76619618,0.00020999,2]
[322613519,1713119441024,-500.0,0.00020999,2]
[322613520,1713119441033,-585.0,0.00020999,2]
[322613521,1713119441043,-500.0,0.00020999,2]
[322613522,1713119441053,-235.0,0.00020999,2]
[322613523,1713119441063,-179.65955689,0.00020999,2]
[322613524,1713119441072,-500.0,0.00020999,2]
[322613525,1713119441082,-200.0,0.00020999,2]
[322613526,1713119441091,-500.0,0.00020999,2]
[322613527,1713119441101,-200.0,0.00020999,2]
[322613528,1713119441111,-500.0,0.00020999,2]
[322613529,1713119441120,-500.0,0.00020999,2]
[322613530,1713119441129,-249.71142505,0.00020999,2]
[322613531,1713119441141,-500.0,0.00020999,2]
[322613532,1713119441151,-500.0,0.00020999,2]
[322613533,1713119441161,-250.0,0.00020999,2]
[322613534,1713119441171,-500.0,0.00020999,2]
[322613535,1713119441181,-500.0,0.00020999,2]
[322613536,1713119441190,-200.0,0.00020999,2]
[322613537,1713119441200,-500.0,0.00020999,2]
[322613538,1713119441211,-200.0,0.00020999,2]
[322613539,1713119441221,-500.0,0.00020999,2]
[322613540,1713119441232,-500.0,0.00020999,2]
[322613541,1713119441242,-400.0,0.00020999,2]
[322613542,1713119441252,-500.0,0.00020999,2]
[322613543,1713119441261,-200.0,0.00020999,2]
[322613544,1713119441271,-500.0,0.00020999,2]
[322613545,1713119441280,-200.0,0.00020999,2]
[322613546,1713119441290,-513.2816651,0.00020999,2]
[322613547,1713119441300,-419.20563276,0.00020999,2]
[322613548,1713119441310,-500.0,0.00020999,2]
[322613549,1713119441320,-500.0,0.00020999,2]
[322613550,1713119441329,-500.0,0.00020999,2]
[322613551,1713119441338,-500.0,0.00020999,2]
[322613552,1713119441348,-323.70626992,0.00020999,2]
[322613553,1713119441358,-500.0,0.00020999,2]
[322613554,1713119441368,-500.0,0.00020999,2]
[322613555,1713119441378,-500.0,0.00020999,2]
[322613556,1713119441388,-200.0,0.00020999,2]
[322613557,1713119441400,-476.92646011,0.00020999,2]
[322613558,1713119441410,-500.0,0.00020999,2]
[322613559,1713119441421,-500.0,0.00020999,2]
[322613560,1713119441431,-249.99999999,0.00020999,2]
[322613561,1713119441441,-500.0,0.00020999,2]
[322613562,1713119441450,-7118621.08971059,0.00021,2]
[322613563,1713119441463,-9560123.64308703,0.00021,2]
[322613564,1713119441472,-1430.30975011,0.00021,2]
[322613565,1713119441481,-1244919.61668824,0.00021,2]
[322613566,1713119441491,-715.48314253,0.00021,2]
[322613567,1713119441501,-447.64,0.00021,2]
[322613568,1713119441510,-338.2,0.00021,2]
[322613569,1713119441521,-150.0,0.00021014,2]
[322613570,1713119441531,-437.1,0.00021014,2]
[322613571,1713119441541,-155.67,0.00021014,2]
[322613572,1713119441551,-150.0,0.00021014,2]
[322613573,1713119441560,-168.06,0.00021171,2]
[322613574,1713119441571,-152.59105541,0.00021235,2]
[322613575,1713119441580,-1073.0,0.000213,2]
[322613576,1713119441590,-1097.1369794,0.00021353,2]
[322613577,1713119441599,-152.59105541,0.00021571,2]
[322613578,1713119441609,-152.59105541,0.00021907,2]
[322613579,1713119441618,-250.0,0.00021918,2]
[322613580,1713119441629,-250.0,0.00021918,2]
[322613581,1713119441639,-999.999999,0.00022,2]
[322613582,1713119441650,-783.55857008,0.00022,2]
[322613583,1713119441660,-1647.0,0.00022,2]
[322613584,1713119441670,-730.42216591,0.00022,2]
[322613585,1713119441680,-730.42216591,0.00022,2]
[322613586,1713119441689,-730.42216591,0.00022,2]
[322613587,1713119441699,-730.42216591,0.00022,2]
[322613588,1713119441709,-730.42216591,0.00022,2]
[322613589,1713119441718,-730.42216591,0.00022,2]
[322613590,1713119441728,-730.42216591,0.00022,2]
[322613591,1713119442060,-730.42216591,0.00022,2]
[322613592,1713119442073,-730.42216591,0.00022,2]
[322613593,1713119442083,-730.42216591,0.00022,2]
[322613594,1713119442092,-730.42216591,0.00022,2]
[322613595,1713119442102,-730.42216591,0.00022,2]
[322613596,1713119442112,-730.42216591,0.00022,2]
[322613597,1713119442122,-730.42216591,0.00022,2]
[322613598,1713119442131,-730.42216591,0.00022,2]
[322613599,1713119442142,-730.42216591,0.00022,2]
[322613600,1713119442156,-730.42216591,0.00022,2]
[322613601,1713119442168,-730.42216591,0.00022,2]
[322613602,1713119442177,-730.42216591,0.00022,2]
[322613603,1713119442188,-730.42216591,0.00022,2]
[322613604,1713119442197,-730.42216591,0.00022,2]
[322613605,1713119442208,-730.42216591,0.00022,2]
[322613606,1713119442218,-730.42216591,0.00022,2]
[322613607,1713119442228,-730.42216591,0.00022,2]
[322613608,1713119442238,-730.42216591,0.00022,2]
[322613609,1713119442248,-730.42216591,0.00022,2]
[322613610,1713119442258,-730.42216591,0.00022,2]
[322613611,1713119442268,-730.42216591,0.00022,2]
[322613612,1713119442278,-730.42216591,0.00022,2]
[322613613,1713119442287,-730.42216591,0.00022,2]
[322613614,1713119442297,-730.42216591,0.00022,2]
[322613615,1713119442308,-730.42216591,0.00022,2]
[322613616,1713119442317,-730.42216591,0.00022,2]
[322613617,1713119442327,-730.42216591,0.00022,2]
[322613618,1713119442337,-730.42216591,0.00022,2]
[322613619,1713119442349,-730.42216591,0.00022,2]
[322613620,1713119442359,-730.42216591,0.00022,2]
[322613621,1713119442368,-730.42216591,0.00022,2]
[322613622,1713119442377,-730.42216591,0.00022,2]
[322613623,1713119442387,-730.42216591,0.00022,2]
[322613624,1713119442398,-730.42216591,0.00022,2]
[322613625,1713119442407,-730.42216591,0.00022,2]
[322613626,1713119442416,-730.42216591,0.00022,2]
[322613627,1713119442425,-730.42216591,0.00022,2]
[322613628,1713119442434,-730.42216591,0.00022,2]
[322613629,1713119442444,-730.42216591,0.00022,2]
[322613630,1713119442453,-730.42216591,0.00022,2]
[322613631,1713119442462,-730.42216591,0.00022,2]
[322613632,1713119442471,-730.42216591,0.00022,2]
[322613633,1713119442481,-730.42216591,0.00022,2]
[322613634,1713119442490,-730.42216591,0.00022,2]
[322613635,1713119442499,-730.42216591,0.00022,2]
[322613636,1713119442509,-730.42216591,0.00022,2]
[322613637,1713119442518,-730.42216591,0.00022,2]
[322613638,1713119442527,-730.42216591,0.00022,2]
[322613639,1713119442536,-730.42216591,0.00022,2]
[322613640,1713119442546,-730.42216591,0.00022,2]
[322613641,1713119442555,-730.42216591,0.00022,2]
[322613642,1713119442564,-730.42216591,0.00022,2]
[322613643,1713119442573,-730.42216591,0.00022,2]
[322613644,1713119442582,-730.42216591,0.00022,2]
[322613645,1713119442591,-730.42216591,0.00022,2]
[322613646,1713119442600,-730.42216591,0.00022,2]
[322613647,1713119442609,-730.42216591,0.00022,2]
[322613648,1713119442618,-730.42216591,0.00022,2]
[322613649,1713119442628,-730.42216591,0.00022,2]
[322613650,1713119442637,-730.42216591,0.00022,2]
[322613651,1713119442648,-730.42216591,0.00022,2]
[322613652,1713119442658,-730.42216591,0.00022,2]
[322613653,1713119442667,-730.42216591,0.00022,2]
[322613654,1713119442676,-730.42216591,0.00022,2]
[322613655,1713119442686,-730.42216591,0.00022,2]
[322613656,1713119442696,-730.42216591,0.00022,2]
[322613657,1713119442705,-730.42216591,0.00022,2]
[322613658,1713119442715,-730.42216591,0.00022,2]
[322613659,1713119442725,-730.42216591,0.00022,2]
[322613660,1713119442734,-730.42216591,0.00022,2]
[322613661,1713119442743,-730.42216591,0.00022,2]
[322613662,1713119442753,-730.42216591,0.00022,2]
[322613663,1713119442762,-730.42216591,0.00022,2]
[322613664,1713119442771,-730.42216591,0.00022,2]
[322613665,1713119442780,-730.42216591,0.00022,2]
[322613666,1713119442790,-730.42216591,0.00022,2]
[322613667,1713119442799,-730.42216591,0.00022,2]
[322613668,1713119442808,-730.42216591,0.00022,2]
[322613669,1713119442818,-730.42216591,0.00022,2]
[322613670,1713119442828,-730.42216591,0.00022,2]
[322613671,1713119442838,-730.42216591,0.00022,2]
[322613672,1713119442847,-730.42216591,0.00022,2]
[322613673,1713119442857,-168.06,0.00022009,2]
[322613674,1713119442866,-191.116,0.00022202,2]
[322613675,1713119442875,-779.87,0.00022213,2]
[322613676,1713119442885,-152.59105541,0.00022243,2]
[322613677,1713119442894,-4446.62,0.00022254,2]
[322613678,1713119442908,-6186.97731092,0.000223,2]
[322613679,1713119442918,-1995.0,0.000223,2]
[322613680,1713119442927,-872.0,0.00022482,2]
[322613681,1713119442937,-152.59105541,0.00022579,2]
[322613682,1713119442946,-168.06,0.00022848,2]
[322613683,1713119442956,-447.64,0.000229,2]
[322613684,1713119442967,-152.59105541,0.00022915,2]
[322613685,1713119442976,-160.0,0.00022953,2]
[322613686,1713119442986,-338.2,0.00023,2]
[322613687,1713119442995,-1250.0,0.00023,3]
[322613688,1713119443005,-200.0,0.00023064,2]
[322613689,1713119443015,-1000.0,0.00023064,2]
[322613690,1713119443024,-324.45,0.00023068,2]
[322613691,1713119443033,-152.59105541,0.00023251,2]
[322613692,1713119443043,-380.0,0.00023288,2]
[322613693,1713119443052,-380.0,0.00023288,2]
[322613694,1713119443063,-380.0,0.00023288,2]
[322613695,1713119443072,-380.0,0.00023288,2]
[322613697,1713119443081,-380.0,0.00023288,2]
[322613699,1713119443090,-380.0,0.00023288,2]
[322613701,1713119443099,-287.42,0.00023288,2]
[322613702,1713119443109,-703.0,0.00023288,2]
[322613704,1713119443118,-191.116,0.00023368,2]
[322613706,1713119443128,-168.06,0.0002341,2]
[322613708,1713119443137,-152.59105541,0.00023587,2]
[322613709,1713119443147,-10000.0,0.00023596,2]
[322613710,1713119443164,-168.06,0.00023687,2]
[322613711,1713119443173,-200.0,0.00023808,2]
[322613714,1713119443183,-151.153,0.00024279,2]
[322613717,1713119443192,-151.0,0.00024279,2]
[322613720,1713119443201,-200.0,0.00024279,2]
[322613722,1713119443210,-153.009,0.00024279,2]
[322613724,1713119443220,-156.408,0.00024279,2]
[322613727,1713119443230,-150.0,0.00024279,2]
[322613729,1713119443240,-250.0,0.00024279,2]
[322613731,1713119443249,-253.729,0.00024279,2]
[322613733,1713119443258,-150.11,0.00024279,2]
[322613735,1713119443268,-150.0,0.00024279,2]
[322613737,1713119443277,-5719.0,0.00024279,2]
[322613739,1713119443286,-2291.0,0.00024279,2]
[322613741,1713119443296,-1426.138,0.00024279,2]
[322613742,1713119443305,-4803.0,0.00024279,2]
[322613743,1713119443314,-968.0,0.00024279,2]
[322613744,1713119443324,-1315.0,0.00024279,2]
[322613745,1713119443334,-471.554,0.00024279,2]
[322613746,1713119443343,-37623.0,0.00024279,2]
[322613747,1713119443353,-779.87,0.00024476,2]
[322613748,1713119443362,-191.116,0.00024656,2]
[322613749,1713119443371,-500.0,0.000247,3]
[322613750,1713119443382,-447.64,0.000247,2]
[322613751,1713119443391,-1998.95566924,0.000248,2]
[322613752,1713119443407,-872.0,0.0002498,2]
[322613753,1713119443416,-4446.62,0.00024993,2]
[322613754,1713119443425,-197.65432387,0.00025,2]
[322613755,1713119443435,-2605.45039561,0.00025,2]
[322613756,1713119443444,-562.74532621,0.00025,2]
[322613757,1713119443453,-1362.16740246,0.00025,2]
[322613758,1713119443462,-178.8191759,0.00025,2]
[322613759,1713119443473,-118188.6652158,0.00025,2]
[322613760,1713119443482,-1300.0,0.00025,3]
[322613761,1713119443491,-200.0,0.00025296,2]
[322613762,1713119443501,-1000.0,0.00025296,2]
[322613763,1713119443510,-338.2,0.000255,2]
[322613764,1713119443519,-150.0,0.000255,2]
[322613765,1713119443529,-150.0,0.00026,2]
[322613766,1713119443538,-191.116,0.00026083,2]
[322613767,1713119443547,-160.0,0.00026232,2]
[322613768,1713119443556,-2230.10412378,0.00026366,28]
[322613769,1713119443565,-34179.71553555,0.000265,2]
[322613770,1713119443574,-150.0,0.000265,2]
[322613771,1713119443584,-779.87,0.0002674,2]
[322613772,1713119443594,-188.56727963,0.00027,4]
[322613773,1713119443603,-1350.0,0.00027,3]
[322613774,1713119443612,-150.0,0.00027,2]
[322613775,1713119443621,-675.816917,0.000272,2]
[322613776,1713119443630,-1013.725376,0.000272,2]
[322613777,1713119443639,-1351.633835,0.000272,2]
[322613778,1713119443652,-1689.542294,0.000272,2]
[322613779,1713119443661,-2365.359211,0.000272,2]
[322613780,1713119443670,-150.0,0.00027279,2]
[322613781,1713119443680,-150.0,0.00027279,2]
[322613782,1713119443689,-150.0,0.00027279,2]
[322613783,1713119443698,-150.0,0.00027279,2]
[322613784,1713119443707,-5719.0,0.00027279,2]
[322613785,1713119443717,-2291.0,0.00027279,2]
[322613786,1713119443726,-1391.0,0.00027279,2]
[322613787,1713119443735,-4803.0,0.00027279,2]
[322613788,1713119443745,-968.0,0.00027279,2]
[322613789,1713119443754,-1315.0,0.00027279,2]
[322613790,1713119443763,-461.0,0.00027279,2]
[322613791,1713119443773,-37623.0,0.00027279,2]
[322613792,1713119443782,-482.73,0.00027396,2]
[322613793,1713119443791,-289.99,0.00027397,2]
[322613794,1713119443801,-306.17,0.00027397,2]
[322613795,1713119443811,-174.1,0.00027397,2]
[322613796,1713119443821,-164.41,0.00027397,2]
[322613797,1713119443830,-2000.0,0.00027397,2]
[322613798,1713119443839,-184.71,0.00027397,2]
[322613799,1713119443848,-872.0,0.00027477,2]
[322613800,1713119443858,-150.0,0.000275,2]
[322613801,1713119443867,-200.0,0.00027528,2]
[322613802,1713119443876,-1000.0,0.00027528,10]
[322613803,1713119443886,-191.116,0.00027668,2]
[322613804,1713119443895,-20189.0893382,0.00028,2]
[322613805,1713119443910,-1884111.73551301,0.00028,2]
[322613806,1713119443919,-155.90112347,0.00028,2]
[322613807,1713119443929,-307.17927733,0.00028,2]
[322613808,1713119443938,-1101.71094274,0.00028,2]
[322613809,1713119443947,-7485.32692737,0.00028,2]
[322613810,1713119443957,-447.64,0.00028,2]
[322613811,1713119443966,-150.0,0.00028,2]